[Event "Hungarian Rapid-ch 2022"]
[Site "Ajka"]
[Date "2022.07.16"]
[Round "8.14"]
[White "Kaczur, Florian"]
[Black "Pap, Peter"]
[Result "1-0"]
[ECO "D11"]
[WhiteElo "2482"]
[BlackElo "2159"]
[Annotator "ChessBase"]
[PlyCount "49"]
[EventDate "2022.07.15"]
[EventType "swiss"]
[EventCountry "HUN"]
[SourceTitle "playchess.com"]
[Source "ChessBase"]
[SourceQuality "1"]
[TimeControl "900+10"]

1. d4 {[%emt 0:00:14]} d5 {[%emt 0:00:13]} 2. Nf3 {[%emt 0:00:03]} Nf6 {[%emt 0:00:01]} 3. c4 {[%emt 0:00:02]} c6 {[%emt 0:00:09]} 4. e3 {[%emt 0:00:08]} e6 {[%emt 0:00:08]} 5. Bd3 {[%emt 0:00:10]} Nbd7 {[%emt 0:00:08]} 6. O-O {[%emt 0:00:08]} Bd6 {[%emt 0:00:12]} 7. Nc3 {[%emt 0:00:31]} O-O {[%emt 0:00:00]} 8. b3 {[%emt 0:01:02]} e5 {[%emt 0:00:05]} 9. cxd5 {[%emt 0:00:07]} cxd5 {[%emt 0:00:04]} 10. dxe5 {[%emt 0:00:06]} Nxe5 {[%emt 0:00:02]} 11. Ne2 {[%emt 0:01:40]} Nxf3+ {[%emt 0:06:36]} 12. gxf3 {[%emt 0:00:02]} Bh3 {[%emt 0:00:26]} 13. Re1 {[%emt 0:00:11]} Rc8 {[%emt 0:01:15]} 14. Ng3 {[%emt 0:00:26]} Be5 {[%emt 0:00:24]} 15. Rb1 {[%emt 0:00:09]} Bc3 {[%emt 0:00:02]} 16. Bd2 {[%emt 0:00:34]} d4 {[%emt 0:00:02]} 17. e4 {[%emt 0:00:13]} Nd7 {[%emt 0:00:19]} 18. f4 {[%emt 0:02:48]} Qh4 {[%emt 0:01:15]} 19. Rc1 {[%emt 0:02:05]} Bg4 {[%emt 0:02:54]} 20. Be2 {[%emt 0:00:06]} Nf6 {[%emt 0:00:13]} 21. f3 {[%emt 0:00:46]} Bh3 {[%emt 0:00:02]} 22. Kh1 {[%emt 0:00:55]} Rc5 {[%emt 0:00:39]} 23. Rg1 {[%emt 0:00:58]} Nh5 {[%emt 0:00:28]} 24. Bxc3 {[%emt 0:00:15]} dxc3 {[%emt 0:00:08]} 25. Qd4 {[%emt 0:00:09]} 1-0

[Event "Hungarian Rapid-ch 2022"]
[Site "Ajka"]
[Date "2022.07.16"]
[Round "8.15"]
[White "Hardicsay, Peter"]
[Black "Kantor, Gergely"]
[Result "1/2-1/2"]
[ECO "A05"]
[WhiteElo "2199"]
[BlackElo "2582"]
[Annotator "ChessBase"]
[PlyCount "62"]
[EventDate "2022.07.15"]
[EventType "swiss"]
[EventCountry "HUN"]
[SourceTitle "playchess.com"]
[Source "ChessBase"]
[SourceQuality "1"]
[TimeControl "900+10"]

1. Nf3 {[%emt 0:00:12]} Nf6 {[%emt 0:00:14]} 2. g3 {[%emt 0:00:12]} b5 {[%emt 0:00:01]} 3. Bg2 {[%emt 0:00:03]} Bb7 {[%emt 0:00:01]} 4. b3 {[%emt 0:00:26]} g6 {[%emt 0:00:14]} 5. Bb2 {[%emt 0:00:14]} Bg7 {[%emt 0:00:01]} 6. Na3 {[%emt 0:00:16]} b4 {[%emt 0:00:19]} 7. Nc4 {[%emt 0:00:02]} a5 {[%emt 0:00:05]} 8. a3 {[%emt 0:00:21]} c5 {[%emt 0:00:24]} 9. O-O {[%emt 0:00:50]} d5 {[%emt 0:00:08]} 10. Nce5 {[%emt 0:00:03]} O-O {[%emt 0:00:07]} 11. axb4 {[%emt 0:01:08]} axb4 {[%emt 0:00:02]} 12. Rxa8 {[%emt 0:00:03]} Bxa8 {[%emt 0:00:02]} 13. c3 {[%emt 0:01:01]} bxc3 {[%emt 0:00:17]} 14. dxc3 {[%emt 0:00:12]} Qb6 {[%emt 0:00:16]} 15. Qc2 {[%emt 0:00:19]} Na6 {[%emt 0:00:12]} 16. Ra1 {[%emt 0:00:35]} Rb8 {[%emt 0:00:02]} 17. Nd2 {[%emt 0:00:14]} Nc7 {[%emt 0:00:19]} 18. c4 {[%emt 0:00:41]} d4 {[%emt 0:00:02]} 19. Bxa8 {[%emt 0:00:17]} Rxa8 20. Rxa8+ {[%emt 0:00:03]} Nxa8 {[%emt 0:00:12]} 21. Ba3 {[%emt 0:00:30]} Nc7 {[%emt 0:00:21]} 22. Nd3 {[%emt 0:00:23]} Na6 {[%emt 0:00:04]} 23. Qb2 {[%emt 0:00:51]} Nd7 {[%emt 0:06:12]} 24. b4 {[%emt 0:00:29]} cxb4 {[%emt 0:00:04]} 25. Bxb4 {[%emt 0:00:10]} e5 {[%emt 0:03:34]} 26. Qa3 {[%emt 0:02:23]} f5 {[%emt 0:00:23]} 27. Qa4 {[%emt 0:01:42]} Nab8 {[%emt 0:00:21]} 28. Qb5 {[%emt 0:01:18]} Qe6 {[%emt 0:00:38]} 29. Nc5 {[%emt 0:00:28]} Qc6 {[%emt 0:01:21]} 30. Nxd7 {[%emt 0:00:24]} Qxb5 {[%emt 0:00:01]} 31. cxb5 {[%emt 0:00:09]} Nxd7 {[%emt 0:00:03]} 1/2-1/2

[Event "Hungarian Rapid-ch 2022"]
[Site "Ajka"]
[Date "2022.07.16"]
[Round "8.16"]
[White "Gelle, Istvan"]
[Black "Mihok, Oliver"]
[Result "0-1"]
[ECO "A45"]
[WhiteElo "2218"]
[BlackElo "2549"]
[Annotator "ChessBase"]
[PlyCount "102"]
[EventDate "2022.07.15"]
[EventType "swiss"]
[EventCountry "HUN"]
[SourceTitle "playchess.com"]
[Source "ChessBase"]
[SourceQuality "1"]
[TimeControl "900+10"]

1. d4 {[%emt 0:00:12]} Nf6 {[%emt 0:00:11]} 2. Bf4 {[%emt 0:00:02]} g6 {[%emt 0:00:00]} 3. e3 {[%emt 0:00:02]} Bg7 {[%emt 0:00:02]} 4. Nf3 {[%emt 0:00:01]} O-O {[%emt 0:00:02]} 5. h3 {[%emt 0:00:02]} d6 {[%emt 0:00:04]} 6. Be2 {[%emt 0:00:01]} c5 {[%emt 0:00:11]} 7. O-O {[%emt 0:00:42]} Nbd7 {[%emt 0:01:00]} 8. Nbd2 {[%emt 0:00:36]} b6 {[%emt 0:00:13]} 9. a4 {[%emt 0:00:08]} a6 {[%emt 0:00:09]} 10. Re1 {[%emt 0:00:09]} Bb7 {[%emt 0:00:03]} 11. Bh2 {[%emt 0:00:07]} Ra7 {[%emt 0:00:46]} 12. c4 {[%emt 0:00:51]} Qa8 {[%emt 0:01:24]} 13. Bf1 {[%emt 0:03:00]} Ne4 {[%emt 0:00:39]} 14. d5 {[%emt 0:01:25]} Nxd2 {[%emt 0:00:52]} 15. Qxd2 {[%emt 0:00:04]} b5 {[%emt 0:00:25]} 16. e4 {[%emt 0:00:43]} bxc4 {[%emt 0:00:34]} 17. Bxc4 {[%emt 0:00:27]} Qb8 {[%emt 0:00:03]} 18. Ra2 {[%emt 0:01:08]} a5 {[%emt 0:00:39]} 19. Qd3 {[%emt 0:02:10]} Nb6 {[%emt 0:00:26]} 20. Bb5 {[%emt 0:00:53]} c4 {[%emt 0:01:55]} 21. Qd2 {[%emt 0:00:53]} Ba6 {[%emt 0:00:09]} 22. Qxa5 {[%emt 0:00:29]} Nxd5 {[%emt 0:02:27]} 23. exd5 {[%emt 0:00:12]} Bxb5 {[%emt 0:00:02]} 24. Qb4 {[%emt 0:00:02]} Ba6 {[%emt 0:00:36]} 25. Qa3 {[%emt 0:01:25]} Qb3 {[%emt 0:00:59]} 26. Qxb3 {[%emt 0:01:18]} cxb3 {[%emt 0:00:01]} 27. Ra3 {[%emt 0:00:01]} Bc4 {[%emt 0:00:31]} 28. Nd2 {[%emt 0:00:17]} Bxd5 {[%emt 0:00:05]} 29. Nxb3 {[%emt 0:00:02]} Bxb2 {[%emt 0:00:26]} 30. Ra2 {[%emt 0:00:04]} Bf6 {[%emt 0:00:21]} 31. Ra3 {[%emt 0:00:42]} Bb2 {[%emt 0:01:01]} 32. Ra2 {[%emt 0:00:07]} Bf6 {[%emt 0:01:01]} 33. Ra3 {[%emt 0:00:02]} Rb8 {[%emt 0:00:37]} 34. Nc5 {[%emt 0:00:35]} Rb4 {[%emt 0:00:23]} 35. Rd3 {[%emt 0:01:03]} Bc4 {[%emt 0:00:20]} 36. Rxd6 {[%emt 0:00:39]} exd6 {[%emt 0:00:09]} 37. Re8+ {[%emt 0:00:19]} Kg7 {[%emt 0:00:01]} 38. Bxd6 {[%emt 0:00:01]} Rb1+ {[%emt 0:00:14]} 39. Kh2 {[%emt 0:00:00]} h5 {[%emt 0:00:34]} 40. Ne4 {[%emt 0:00:14]} g5 {[%emt 0:00:27]} 41. Bf8+ {[%emt 0:00:27]} Kg6 {[%emt 0:00:02]} 42. Bc5 {[%emt 0:00:01]} Ra6 {[%emt 0:00:15]} 43. g4 {[%emt 0:00:28]} hxg4 {[%emt 0:00:10]} 44. hxg4 {[%emt 0:00:01]} Re6 {[%emt 0:00:18]} 45. Nxf6 {[%emt 0:00:06]} Rxf6 {[%emt 0:00:32]} 46. Bd4 {[%emt 0:00:01]} Rd1 {[%emt 0:00:21]} 47. Rd8 {[%emt 0:00:32]} Rxf2+ {[%emt 0:00:24]} 48. Kg3 {[%emt 0:00:01]} Rxd4 {[%emt 0:00:00]} 49. Rxd4 {[%emt 0:00:10]} Rc2 {[%emt 0:00:19]} 50. a5 {[%emt 0:00:15]} Be6 {[%emt 0:00:09]} 51. Ra4 {[%emt 0:00:13]} Ra2 {[%emt 0:00:01]} 0-1

[Event "Hungarian Rapid-ch 2022"]
[Site "Ajka"]
[Date "2022.07.16"]
[Round "8.17"]
[White "Gombocz, Ferenc Jr."]
[Black "Papp, Levente"]
[Result "1/2-1/2"]
[ECO "A20"]
[WhiteElo "2229"]
[BlackElo "2394"]
[Annotator "ChessBase"]
[PlyCount "74"]
[EventDate "2022.07.15"]
[EventType "swiss"]
[EventCountry "HUN"]
[SourceTitle "playchess.com"]
[Source "ChessBase"]
[SourceQuality "1"]
[TimeControl "900+10"]

1. c4 {[%emt 0:00:13]} e5 {[%emt 0:00:20]} 2. g3 {[%emt 0:00:02]} Nf6 {[%emt 0:00:05]} 3. Bg2 {[%emt 0:00:02]} c6 {[%emt 0:00:03]} 4. Nf3 {[%emt 0:00:02]} e4 {[%emt 0:00:02]} 5. Nd4 {[%emt 0:00:02]} Qb6 {[%emt 0:00:01]} 6. Nb3 {[%emt 0:00:35]} a5 {[%emt 0:00:08]} 7. d3 {[%emt 0:00:19]} a4 {[%emt 0:01:35]} 8. N3d2 {[%emt 0:01:41]} Bc5 {[%emt 0:00:02]} 9. e3 {[%emt 0:00:50]} exd3 {[%emt 0:01:03]} 10. Ne4 {[%emt 0:00:48]} Nxe4 {[%emt 0:00:13]} 11. Bxe4 {[%emt 0:00:13]} Qb4+ {[%emt 0:01:06]} 12. Nd2 {[%emt 0:00:38]} d5 {[%emt 0:01:17]} 13. Bxd3 {[%emt 0:00:55]} Nd7 {[%emt 0:00:45]} 14. a3 {[%emt 0:02:13]} Qa5 {[%emt 0:00:20]} 15. O-O {[%emt 0:01:00]} Ne5 {[%emt 0:01:10]} 16. Be2 {[%emt 0:00:14]} dxc4 {[%emt 0:01:31]} 17. Nxc4 {[%emt 0:00:23]} Qc7 {[%emt 0:00:49]} 18. b4 {[%emt 0:01:01]} axb3 {[%emt 0:00:40]} 19. Bb2 {[%emt 0:00:08]} Nxc4 {[%emt 0:00:10]} 20. Bxc4 {[%emt 0:00:05]} O-O {[%emt 0:00:18]} 21. Qxb3 {[%emt 0:00:20]} Be7 {[%emt 0:01:04]} 22. e4 {[%emt 0:02:35]} b5 {[%emt 0:00:56]} 23. Qc3 {[%emt 0:01:03]} Bf6 {[%emt 0:00:03]} 24. e5 {[%emt 0:00:01]} Bxe5 {[%emt 0:00:18]} 25. Qxe5 {[%emt 0:00:06]} Qxe5 {[%emt 0:00:02]} 26. Bxf7+ {[%emt 0:00:27]} Rxf7 {[%emt 0:00:01]} 27. Bxe5 {[%emt 0:00:02]} Rf3 {[%emt 0:02:08]} 28. Bd6 {[%emt 0:01:01]} Be6 {[%emt 0:00:18]} 29. Rfe1 {[%emt 0:00:28]} Kf7 {[%emt 0:00:53]} 30. Rac1 {[%emt 0:00:43]} Rc8 {[%emt 0:00:25]} 31. Re5 {[%emt 0:01:23]} Rd3 {[%emt 0:00:27]} 32. Bb4 {[%emt 0:00:18]} Rd7 {[%emt 0:01:31]} 33. Rce1 {[%emt 0:00:14]} Re8 {[%emt 0:00:14]} 34. f4 {[%emt 0:00:17]} g6 {[%emt 0:00:05]} 35. Kf2 {[%emt 0:00:06]} Rd5 {[%emt 0:00:27]} 36. Rxd5 {[%emt 0:00:12]} Bxd5 {[%emt 0:00:01]} 37. Rxe8 {[%emt 0:00:03]} Kxe8 {[%emt 0:00:02]} 1/2-1/2

[Event "Hungarian Rapid-ch 2022"]
[Site "Ajka"]
[Date "2022.07.16"]
[Round "8.18"]
[White "Hoang, Thanh Trang"]
[Black "Balint, Vilmos"]
[Result "1-0"]
[ECO "A40"]
[WhiteElo "2376"]
[BlackElo "2283"]
[Annotator "ChessBase"]
[PlyCount "149"]
[EventDate "2022.07.15"]
[EventType "swiss"]
[EventCountry "HUN"]
[SourceTitle "playchess.com"]
[Source "ChessBase"]
[SourceQuality "1"]
[TimeControl "900+10"]

1. d4 {[%emt 0:00:13]} e6 {[%emt 0:00:11]} 2. Nf3 {[%emt 0:00:05]} b6 {[%emt 0:00:07]} 3. e4 {[%emt 0:00:46]} Bb7 {[%emt 0:00:03]} 4. Bd3 {[%emt 0:00:08]} c5 {[%emt 0:00:23]} 5. c3 {[%emt 0:00:24]} Nf6 {[%emt 0:00:15]} 6. Qe2 {[%emt 0:00:25]} Nc6 {[%emt 0:00:09]} 7. a3 {[%emt 0:00:27]} Na5 {[%emt 0:00:28]} 8. Nbd2 {[%emt 0:00:36]} cxd4 {[%emt 0:00:02]} 9. cxd4 {[%emt 0:00:23]} d5 {[%emt 0:00:43]} 10. e5 {[%emt 0:00:14]} Ne4 {[%emt 0:01:29]} 11. Nxe4 {[%emt 0:01:26]} dxe4 {[%emt 0:00:07]} 12. Bxe4 {[%emt 0:00:50]} Qd7 {[%emt 0:01:53]} 13. Bxb7 {[%emt 0:00:59]} Qxb7 {[%emt 0:00:03]} 14. O-O {[%emt 0:01:25]} Be7 {[%emt 0:00:20]} 15. b4 {[%emt 0:00:18]} Nc6 {[%emt 0:00:34]} 16. Bb2 {[%emt 0:00:28]} O-O {[%emt 0:00:10]} 17. Rac1 {[%emt 0:00:24]} Rfd8 {[%emt 0:00:07]} 18. Rc2 {[%emt 0:00:33]} Rac8 {[%emt 0:01:01]} 19. Qe4 {[%emt 0:01:15]} Rd5 {[%emt 0:00:15]} 20. Rfc1 {[%emt 0:00:18]} a6 {[%emt 0:00:06]} 21. Rc3 {[%emt 0:01:30]} Na7 {[%emt 0:01:03]} 22. Rxc8+ {[%emt 0:00:16]} Nxc8 {[%emt 0:00:02]} 23. Qc2 {[%emt 0:00:11]} Na7 {[%emt 0:00:01]} 24. Qc7 {[%emt 0:00:14]} Rd7 {[%emt 0:00:02]} 25. Qxb7 {[%emt 0:00:03]} Rxb7 {[%emt 0:00:02]} 26. Kf1 {[%emt 0:00:07]} Kf8 {[%emt 0:00:06]} 27. Ke2 {[%emt 0:00:02]} Ke8 {[%emt 0:00:01]} 28. Rc2 {[%emt 0:00:25]} Kd7 {[%emt 0:00:07]} 29. Nd2 {[%emt 0:00:07]} a5 {[%emt 0:00:45]} 30. bxa5 {[%emt 0:02:13]} bxa5 {[%emt 0:00:03]} 31. a4 {[%emt 0:01:12]} Nc6 {[%emt 0:01:34]} 32. Nc4 {[%emt 0:00:16]} Rb4 {[%emt 0:01:13]} 33. Kd3 {[%emt 0:00:27]} Bd8 {[%emt 0:00:49]} 34. Bc3 {[%emt 0:01:10]} Rxa4 {[%emt 0:00:25]} 35. Rb2 {[%emt 0:00:05]} Nb4+ {[%emt 0:01:05]} 36. Bxb4 {[%emt 0:00:02]} axb4 {[%emt 0:00:01]} 37. Kc2 {[%emt 0:00:34]} Kc6 {[%emt 0:00:06]} 38. Kb3 {[%emt 0:00:07]} Ra1 {[%emt 0:00:10]} 39. Kxb4 {[%emt 0:00:11]} Kd5 {[%emt 0:00:21]} 40. Kc3 {[%emt 0:00:33]} Rc1+ {[%emt 0:01:45]} 41. Kd3 {[%emt 0:00:03]} Rd1+ {[%emt 0:00:01]} 42. Rd2 {[%emt 0:00:23]} Ra1 {[%emt 0:00:37]} 43. Ne3+ {[%emt 0:00:02]} Kc6 {[%emt 0:00:00]} 44. Rc2+ {[%emt 0:00:05]} Kd7 {[%emt 0:00:01]} 45. Ke4 {[%emt 0:00:05]} f5+ {[%emt 0:00:08]} 46. exf6 {[%emt 0:00:04]} gxf6 {[%emt 0:00:01]} 47. g4 {[%emt 0:00:08]} Rh1 {[%emt 0:00:31]} 48. f4 {[%emt 0:00:12]} Bc7 {[%emt 0:00:10]} 49. d5 {[%emt 0:00:12]} Bd6 {[%emt 0:00:29]} 50. dxe6+ {[%emt 0:00:24]} Kxe6 {[%emt 0:00:01]} 51. Rc6 {[%emt 0:00:06]} Kd7 {[%emt 0:00:24]} 52. Rc2 {[%emt 0:00:03]} Ke6 {[%emt 0:00:01]} 53. Ra2 {[%emt 0:00:12]} Bc5 {[%emt 0:00:20]} 54. Ra6+ {[%emt 0:00:05]} Kf7 {[%emt 0:00:02]} 55. Nd5 {[%emt 0:00:09]} Rxh2 {[%emt 0:00:33]} 56. Rxf6+ {[%emt 0:00:02]} Kg7 {[%emt 0:00:01]} 57. Rc6 {[%emt 0:00:02]} Ba3 {[%emt 0:00:25]} 58. Kf5 {[%emt 0:00:03]} Rd2 {[%emt 0:00:09]} 59. Rc7+ {[%emt 0:00:12]} Kf8 {[%emt 0:00:06]} 60. Nf6 {[%emt 0:00:08]} h6 {[%emt 0:00:18]} 61. Kg6 {[%emt 0:00:05]} Be7 {[%emt 0:00:21]} 62. Rc8+ {[%emt 0:00:29]} Bd8 {[%emt 0:00:09]} 63. Kxh6 {[%emt 0:00:06]} Kf7 {[%emt 0:00:05]} 64. Nh5 {[%emt 0:00:25]} Be7 {[%emt 0:00:38]} 65. g5 {[%emt 0:00:25]} Bf8+ {[%emt 0:01:44]} 66. Kh7 {[%emt 0:00:04]} Rg2 {[%emt 0:00:04]} 67. Rc7+ {[%emt 0:00:13]} Ke6 {[%emt 0:00:13]} 68. Kg6 {[%emt 0:00:10]} Bd6 {[%emt 0:00:07]} 69. f5+ {[%emt 0:00:04]} Ke5 {[%emt 0:00:03]} 70. Ra7 {[%emt 0:00:10]} Bc5 {[%emt 0:00:16]} 71. Ra5 {[%emt 0:00:09]} Kd6 {[%emt 0:00:02]} 72. f6 {[%emt 0:00:05]} Bb4 {[%emt 0:00:07]} 73. Ra6+ {[%emt 0:00:03]} Kc7 {[%emt 0:00:13]} 74. f7 {[%emt 0:00:04]} Kb7 {[%emt 0:00:14]} 75. Rf6 {[%emt 0:00:10]} 1-0

[Event "Hungarian Rapid-ch 2022"]
[Site "Ajka"]
[Date "2022.07.16"]
[Round "8.19"]
[White "Benedek, Istvan"]
[Black "Straubinger, Daniel"]
[Result "0-1"]
[ECO "B12"]
[WhiteElo "2059"]
[BlackElo "2349"]
[Annotator "ChessBase"]
[PlyCount "80"]
[EventDate "2022.07.15"]
[EventType "swiss"]
[EventCountry "HUN"]
[SourceTitle "playchess.com"]
[Source "ChessBase"]
[SourceQuality "1"]
[TimeControl "900+10"]

1. e4 {[%emt 0:00:13]} c6 {[%emt 0:00:20]} 2. d4 {[%emt 0:00:02]} d5 {[%emt 0:00:02]} 3. f3 {[%emt 0:00:01]} g6 {[%emt 0:00:11]} 4. Nc3 {[%emt 0:00:02]} Bg7 {[%emt 0:00:03]} 5. Be3 {[%emt 0:00:03]} Nf6 {[%emt 0:00:33]} 6. e5 {[%emt 0:01:15]} Nfd7 {[%emt 0:00:05]} 7. Qd2 {[%emt 0:00:13]} h5 {[%emt 0:00:13]} 8. Bd3 {[%emt 0:01:25]} Nf8 {[%emt 0:00:03]} 9. f4 {[%emt 0:00:34]} Bf5 {[%emt 0:00:18]} 10. Nf3 {[%emt 0:00:15]} Nbd7 {[%emt 0:01:00]} 11. O-O {[%emt 0:00:13]} Qc7 {[%emt 0:03:13]} 12. Na4 {[%emt 0:01:18]} Nb6 {[%emt 0:01:27]} 13. Nc5 {[%emt 0:00:45]} Nc4 {[%emt 0:01:29]} 14. Bxc4 {[%emt 0:00:22]} dxc4 {[%emt 0:00:01]} 15. Qc3 {[%emt 0:00:36]} b6 {[%emt 0:00:09]} 16. Na4 {[%emt 0:01:09]} Nd7 {[%emt 0:00:06]} 17. b3 {[%emt 0:01:08]} b5 {[%emt 0:00:33]} 18. Nb2 {[%emt 0:00:28]} cxb3 {[%emt 0:00:20]} 19. cxb3 {[%emt 0:00:27]} Nb6 {[%emt 0:00:02]} 20. Qc5 {[%emt 0:00:25]} O-O {[%emt 0:01:06]} 21. Rac1 {[%emt 0:00:10]} Rfc8 {[%emt 0:00:29]} 22. Nh4 {[%emt 0:00:42]} Be4 {[%emt 0:00:49]} 23. f5 {[%emt 0:00:25]} Nd5 {[%emt 0:00:46]} 24. Bd2 {[%emt 0:00:24]} e6 {[%emt 0:00:08]} 25. fxe6 {[%emt 0:00:41]} Bf8 {[%emt 0:00:44]} 26. Rxf7 {[%emt 0:03:00]} Bxc5 {[%emt 0:00:05]} 27. Rxc5 {[%emt 0:00:46]} Qd8 {[%emt 0:00:22]} 28. g3 {[%emt 0:00:26]} Nc7 {[%emt 0:00:40]} 29. Rd7 {[%emt 0:00:14]} Qe8 {[%emt 0:00:44]} 30. Bg5 {[%emt 0:01:30]} Nxe6 {[%emt 0:00:03]} 31. Re7 {[%emt 0:00:01]} Nxg5 {[%emt 0:00:03]} 32. Rxe8+ {[%emt 0:00:05]} Rxe8 {[%emt 0:00:03]} 33. Nd1 {[%emt 0:00:11]} Nh3+ {[%emt 0:00:26]} 34. Kf1 {[%emt 0:00:03]} Rad8 {[%emt 0:00:04]} 35. Nc3 {[%emt 0:00:28]} Bd3+ {[%emt 0:02:13]} 36. Kg2 {[%emt 0:00:02]} Ng5 {[%emt 0:00:08]} 37. Rxc6 {[%emt 0:00:17]} b4 {[%emt 0:00:04]} 38. Nf3 {[%emt 0:00:58]} Nxf3 {[%emt 0:00:07]} 39. Kxf3 {[%emt 0:00:01]} bxc3 {[%emt 0:00:03]} 40. Ke3 {[%emt 0:00:01]} Rc8 {[%emt 0:00:10]} 0-1

[Event "Hungarian Rapid-ch 2022"]
[Site "Ajka"]
[Date "2022.07.16"]
[Round "8.20"]
[White "Emodi, Barnabas"]
[Black "Mozes, Ervin"]
[Result "1/2-1/2"]
[ECO "A05"]
[WhiteElo "2341"]
[BlackElo "2039"]
[Annotator "ChessBase"]
[PlyCount "29"]
[EventDate "2022.07.15"]
[EventType "swiss"]
[EventCountry "HUN"]
[SourceTitle "playchess.com"]
[Source "ChessBase"]
[SourceQuality "1"]
[TimeControl "900+10"]

1. Nf3 {[%emt 0:00:28]} Nf6 {[%emt 0:00:13]} 2. d4 {[%emt 0:00:02]} d6 {[%emt 0:00:03]} 3. c3 {[%emt 0:00:11]} c6 {[%emt 0:00:08]} 4. Bg5 {[%emt 0:00:07]} Nbd7 {[%emt 0:00:19]} 5. Nbd2 {[%emt 0:00:05]} h6 {[%emt 0:00:12]} 6. Bh4 {[%emt 0:00:12]} d5 {[%emt 0:00:15]} 7. e3 {[%emt 0:00:18]} e6 {[%emt 0:00:42]} 8. Bd3 {[%emt 0:00:19]} Be7 {[%emt 0:00:02]} 9. O-O {[%emt 0:00:25]} a5 {[%emt 0:01:27]} 10. a4 {[%emt 0:00:40]} b6 {[%emt 0:00:27]} 11. Qe2 {[%emt 0:00:10]} O-O {[%emt 0:02:02]} 12. e4 {[%emt 0:00:51]} dxe4 {[%emt 0:00:23]} 13. Nxe4 {[%emt 0:00:21]} Nd5 {[%emt 0:01:32]} 14. Bxe7 {[%emt 0:01:25]} Qxe7 {[%emt 0:00:05]} 15. g3 1/2-1/2

[Event "Hungarian Rapid-ch 2022"]
[Site "Ajka"]
[Date "2022.07.16"]
[Round "8.21"]
[White "Bodi, Tibor"]
[Black "Mihok-Juhasz, Barbara"]
[Result "1/2-1/2"]
[ECO "A00"]
[WhiteElo "2301"]
[BlackElo "2221"]
[Annotator "ChessBase"]
[PlyCount "127"]
[EventDate "2022.07.15"]
[EventType "swiss"]
[EventCountry "HUN"]
[SourceTitle "playchess.com"]
[Source "ChessBase"]
[SourceQuality "1"]
[TimeControl "900+10"]

1. Nc3 {[%emt 0:00:14]} d5 {[%emt 0:00:17]} 2. e4 {[%emt 0:00:01]} d4 {[%emt 0:00:10]} 3. Nce2 {[%emt 0:00:02]} e5 {[%emt 0:00:14]} 4. Ng3 {[%emt 0:00:02]} Nf6 {[%emt 0:01:06]} 5. Nf3 {[%emt 0:00:07]} Bd6 {[%emt 0:00:05]} 6. Bc4 {[%emt 0:00:09]} O-O {[%emt 0:00:05]} 7. d3 {[%emt 0:00:05]} Be6 {[%emt 0:00:16]} 8. Bb3 {[%emt 0:00:17]} a5 {[%emt 0:00:06]} 9. c3 {[%emt 0:01:56]} c5 {[%emt 0:01:54]} 10. O-O {[%emt 0:01:27]} Nc6 {[%emt 0:00:28]} 11. Bxe6 {[%emt 0:00:43]} fxe6 {[%emt 0:00:01]} 12. Qb3 {[%emt 0:00:03]} Qd7 {[%emt 0:00:09]} 13. a4 {[%emt 0:00:02]} Kh8 {[%emt 0:00:30]} 14. Nd2 {[%emt 0:01:30]} Rf7 {[%emt 0:03:10]} 15. Nc4 {[%emt 0:00:13]} Raf8 {[%emt 0:00:02]} 16. f3 {[%emt 0:00:35]} Ng8 {[%emt 0:02:16]} 17. Qb5 {[%emt 0:01:03]} Qc7 {[%emt 0:00:34]} 18. Qb6 {[%emt 0:01:55]} Qxb6 {[%emt 0:00:17]} 19. Nxb6 {[%emt 0:00:02]} Bc7 {[%emt 0:00:01]} 20. Nc4 {[%emt 0:00:02]} Nge7 {[%emt 0:00:03]} 21. Ra3 {[%emt 0:00:40]} b6 {[%emt 0:01:24]} 22. Rb3 {[%emt 0:00:20]} Nc8 {[%emt 0:00:02]} 23. Kf2 {[%emt 0:00:15]} Rd7 {[%emt 0:00:15]} 24. Ke2 {[%emt 0:00:09]} h6 {[%emt 0:00:03]} 25. Nh1 {[%emt 0:00:19]} N6e7 {[%emt 0:00:29]} 26. Nf2 {[%emt 0:00:11]} Ng6 {[%emt 0:00:04]} 27. g3 {[%emt 0:01:59]} Rdf7 {[%emt 0:00:40]} 28. Nd1 {[%emt 0:00:06]} Kh7 {[%emt 0:00:42]} 29. Bd2 {[%emt 0:00:08]} Nge7 {[%emt 0:00:15]} 30. Ra3 {[%emt 0:00:39]} Nc6 {[%emt 0:00:03]} 31. Ra1 {[%emt 0:00:24]} g5 {[%emt 0:00:18]} 32. h3 {[%emt 0:00:07]} Kg6 {[%emt 0:00:12]} 33. Rf2 {[%emt 0:01:22]} Nd6 {[%emt 0:00:20]} 34. Na3 {[%emt 0:00:59]} Bb8 {[%emt 0:00:27]} 35. Nc2 {[%emt 0:00:04]} c4 {[%emt 0:00:33]} 36. cxd4 {[%emt 0:00:34]} cxd3+ {[%emt 0:00:27]} 37. Kxd3 {[%emt 0:00:08]} Rxf3+ {[%emt 0:00:29]} 38. Rxf3 {[%emt 0:00:01]} Rxf3+ {[%emt 0:00:01]} 39. Ke2 {[%emt 0:00:01]} Rxg3 {[%emt 0:00:01]} 40. d5 {[%emt 0:00:16]} exd5 {[%emt 0:00:03]} 41. exd5 {[%emt 0:00:01]} Nd4+ {[%emt 0:00:01]} 42. Nxd4 {[%emt 0:00:02]} exd4 {[%emt 0:00:01]} 43. Nf2 {[%emt 0:00:06]} Nb7 {[%emt 0:01:03]} 44. b4 {[%emt 0:00:18]} axb4 {[%emt 0:00:15]} 45. Bxb4 {[%emt 0:00:02]} Bf4 {[%emt 0:00:25]} 46. Rb1 {[%emt 0:00:14]} Kf5 {[%emt 0:00:20]} 47. Bf8 {[%emt 0:00:34]} Re3+ {[%emt 0:01:15]} 48. Kf1 {[%emt 0:00:12]} Nc5 {[%emt 0:00:04]} 49. Bg7 {[%emt 0:00:23]} Nxa4 {[%emt 0:00:41]} 50. Bxd4 {[%emt 0:00:06]} Re8 {[%emt 0:00:06]} 51. Rb4 {[%emt 0:00:20]} Ra8 {[%emt 0:00:16]} 52. Kg2 {[%emt 0:00:18]} Bd6 53. Rb5 {[%emt 0:00:04]} Ra5 {[%emt 0:00:12]} 54. Rb3 {[%emt 0:00:09]} Rxd5 {[%emt 0:00:06]} 55. Bxb6 {[%emt 0:00:09]} Nxb6 {[%emt 0:00:07]} 56. Rxb6 {[%emt 0:00:02]} h5 {[%emt 0:00:01]} 57. Rb3 {[%emt 0:00:22]} Rd2 {[%emt 0:00:09]} 58. Rd3 {[%emt 0:00:09]} Rxd3 {[%emt 0:00:07]} 59. Nxd3 {[%emt 0:00:01]} Ke4 {[%emt 0:00:01]} 60. Ne1 {[%emt 0:00:13]} Bf4 {[%emt 0:00:09]} 61. Nf3 {[%emt 0:00:05]} Ke3 {[%emt 0:00:01]} 62. Nxg5 {[%emt 0:00:08]} Bxg5 {[%emt 0:00:02]} 63. h4 {[%emt 0:00:01]} Bxh4 {[%emt 0:00:03]} 64. Kh1 {[%emt 0:00:02]} 1/2-1/2